[Event "Titled Tuesday Blitz May 30 Early 2023"]
[White "Garv Gaur"]
[Black "Janik, Igor"]
[WhiteFideId "45030839"]
[BlackFideId "1159259"]
[WhiteElo "2068"]
[BlackElo "2484"]
[Result "0-1"]
[Round "10"]
[TimeControl "180+2"]
[Date "2023.05.30"]
[WhiteClock "0:00:03"]
[BlackClock "0:00:09"]

1. Nf3 {[%clk 0:03:00]}  d5 {[%clk 0:02:59]} 2. g3 {[%clk 0:02:59]}  Nf6 {[%clk 0:02:59]} 3. Bg2 {[%clk 0:02:59]}  Bg4 {[%clk 0:02:58]} 4. O-O {[%clk 0:02:57]}  e6 {[%clk 0:02:59]} 5. h3 {[%clk 0:02:56]}  Bh5 {[%clk 0:02:59]} 6. d4 {[%clk 0:02:55]}  c6 {[%clk 0:03:00]} 7. c4 {[%clk 0:02:55]}  Be7 {[%clk 0:03:00]} 8. Ne5 {[%clk 0:02:46]}  Nbd7 {[%clk 0:02:54]} 9. Nc3 {[%clk 0:02:42]}  O-O {[%clk 0:02:52]} 10. g4 {[%clk 0:02:37]}  Bg6 {[%clk 0:02:48]} 11. f4 {[%clk 0:02:37]}  Nxe5 {[%clk 0:02:23]} 12. dxe5 {[%clk 0:02:38]}  Ne4 {[%clk 0:02:22]} 13. Nxe4 {[%clk 0:02:30]}  Bxe4 {[%clk 0:02:18]} 14. Bxe4 {[%clk 0:02:29]}  dxe4 {[%clk 0:02:19]} 15. Qc2 {[%clk 0:02:29]}  Bc5+ {[%clk 0:01:53]} 16. Kg2 {[%clk 0:02:27]}  e3 {[%clk 0:01:46]} 17. Rd1 {[%clk 0:02:26]}  Qh4 {[%clk 0:01:44]} 18. Rf1 {[%clk 0:02:21]}  f6 {[%clk 0:01:40]} 19. exf6 {[%clk 0:02:19]}  gxf6 {[%clk 0:01:23]} 20. b3 {[%clk 0:02:17]}  f5 {[%clk 0:01:17]} 21. g5 {[%clk 0:02:11]}  e5 {[%clk 0:01:14]} 22. Bb2 {[%clk 0:01:49]}  exf4 {[%clk 0:01:06]} 23. Rf3 {[%clk 0:01:46]}  Rad8 {[%clk 0:01:05]} 24. Qc3 {[%clk 0:01:45]}  Bd4 {[%clk 0:01:03]} 25. Qxd4 {[%clk 0:01:39]}  Rxd4 {[%clk 0:01:02]} 26. Bxd4 {[%clk 0:01:39]}  Rd8 {[%clk 0:01:01]} 27. Bc3 {[%clk 0:01:39]}  Kf7 {[%clk 0:00:43]} 28. Rg1 {[%clk 0:01:31]}  Ke6 {[%clk 0:00:32]} 29. Kh2 {[%clk 0:01:26]}  Rd2 {[%clk 0:00:30]} 30. Bxd2 {[%clk 0:01:05]}  exd2 {[%clk 0:00:30]} 31. Rff1 {[%clk 0:01:06]}  Ke5 {[%clk 0:00:21]} 32. b4 {[%clk 0:00:25]}  Ke4 {[%clk 0:00:21]} 33. b5 {[%clk 0:00:25]}  Ke3 {[%clk 0:00:19]} 34. bxc6 {[%clk 0:00:22]}  bxc6 {[%clk 0:00:19]} 35. Rb1 {[%clk 0:00:17]}  Qf2+ {[%clk 0:00:11]} 36. Kh1 {[%clk 0:00:17]}  Kxe2 {[%clk 0:00:10]} 37. c5 {[%clk 0:00:08]}  Qf3+ {[%clk 0:00:09]} 38. Kh2 {[%clk 0:00:08]}  Qd3 {[%clk 0:00:08]} 39. Rbd1 {[%clk 0:00:07]}  f3 {[%clk 0:00:08]} 40. Rgf1 {[%clk 0:00:05]}  f2 {[%clk 0:00:08]} 41. Kg2 {[%clk 0:00:05]}  Qf3+ {[%clk 0:00:09]} 42. Kh2 {[%clk 0:00:06]}  f4 {[%clk 0:00:08]} 43. a4 {[%clk 0:00:03]}  Qg3+ {[%clk 0:00:08]} 44. Kh1 {[%clk 0:00:03]}  Qxh3# {[%clk 0:00:09]} 0-1


[Site "https://www.chess.com"]

[Event "Titled Tuesday Blitz May 30 Early 2023"]
[White "Hasangatin, Ramil"]
[Black "Budrewicz, Krzysztof"]
[WhiteFideId "4122160"]
[BlackFideId "1127950"]
[WhiteElo "2279"]
[BlackElo "2230"]
[Result "0-1"]
[Round "10"]
[TimeControl "180+2"]
[Date "2023.05.30"]
[WhiteClock "0:00:00"]
[BlackClock "0:00:34"]

1. e4 {[%clk 0:03:00]}  g6 {[%clk 0:02:59]} 2. d4 {[%clk 0:03:00]}  Bg7 {[%clk 0:03:00]} 3. Nc3 {[%clk 0:03:01]}  d6 {[%clk 0:03:00]} 4. Nf3 {[%clk 0:03:01]}  a6 {[%clk 0:03:01]} 5. h3 {[%clk 0:03:01]}  b5 {[%clk 0:03:01]} 6. a4 {[%clk 0:03:02]}  b4 {[%clk 0:03:02]} 7. Nd5 {[%clk 0:03:02]}  a5 {[%clk 0:02:54]} 8. Bd3 {[%clk 0:03:02]}  c6 {[%clk 0:02:52]} 9. Ne3 {[%clk 0:03:02]}  Nd7 {[%clk 0:02:51]} 10. O-O {[%clk 0:03:01]}  e5 {[%clk 0:02:51]} 11. d5 {[%clk 0:03:00]}  c5 {[%clk 0:02:48]} 12. Bb5 {[%clk 0:02:59]}  Nf6 {[%clk 0:02:45]} 13. Nd2 {[%clk 0:02:59]}  O-O {[%clk 0:02:45]} 14. Nec4 {[%clk 0:02:57]}  Nb6 {[%clk 0:02:44]} 15. Nxb6 {[%clk 0:02:57]}  Qxb6 {[%clk 0:02:44]} 16. Nc4 {[%clk 0:02:57]}  Qc7 {[%clk 0:02:44]} 17. f3 {[%clk 0:02:56]}  Nh5 {[%clk 0:02:43]} 18. Be3 {[%clk 0:02:48]}  f5 {[%clk 0:02:41]} 19. Qd2 {[%clk 0:02:41]}  Ng3 {[%clk 0:02:38]} 20. Rfe1 {[%clk 0:02:40]}  fxe4 {[%clk 0:02:37]} 21. fxe4 {[%clk 0:02:40]}  Nxe4 {[%clk 0:02:37]} 22. Qd3 {[%clk 0:02:41]}  Nf6 {[%clk 0:02:34]} 23. Bc6 {[%clk 0:02:39]}  Rb8 {[%clk 0:02:33]} 24. Bg5 {[%clk 0:02:33]}  Bf5 {[%clk 0:02:31]} 25. Qe2 {[%clk 0:02:31]}  Ne4 {[%clk 0:02:29]} 26. Be3 {[%clk 0:02:30]}  h5 {[%clk 0:02:12]} 27. g4 {[%clk 0:02:29]}  hxg4 {[%clk 0:02:10]} 28. hxg4 {[%clk 0:02:30]}  Bd7 {[%clk 0:02:05]} 29. Bxd7 {[%clk 0:02:27]}  Qxd7 {[%clk 0:02:05]} 30. Kg2 {[%clk 0:02:26]}  Bh6 {[%clk 0:01:54]} 31. Rf1 {[%clk 0:01:53]}  Bxe3 {[%clk 0:01:49]} 32. Nxe3 {[%clk 0:01:54]}  Ng5 {[%clk 0:01:34]} 33. Nc4 {[%clk 0:01:48]}  e4 {[%clk 0:01:29]} 34. Nd2 {[%clk 0:01:18]}  Rf3 {[%clk 0:01:06]} 35. Rxf3 {[%clk 0:01:16]}  Qxg4+ {[%clk 0:01:03]} 36. Kf2 {[%clk 0:01:14]}  exf3 {[%clk 0:01:03]} 37. Qe3 {[%clk 0:01:09]}  Qg2+ {[%clk 0:00:48]} 38. Ke1 {[%clk 0:01:09]}  f2+ {[%clk 0:00:40]} 39. Kd1 {[%clk 0:01:04]}  f1=Q+ {[%clk 0:00:38]} 40. Nxf1 {[%clk 0:01:04]}  Qxf1+ {[%clk 0:00:38]} 41. Kd2 {[%clk 0:00:00]}  Nf3+ {[%clk 0:00:34]} 0-1


[Site "https://www.chess.com"]

[Event "Titled Tuesday Blitz May 30 Early 2023"]
[White "Aradhya, Garg"]
[Black "Tologon tegin, Semetei"]
[WhiteFideId "25006746"]
[BlackFideId "13800574"]
[WhiteElo "2263"]
[BlackElo "2247"]
[Result "0-1"]
[Round "10"]
[TimeControl "180+2"]
[Date "2023.05.30"]
[WhiteClock "0:00:00"]
[BlackClock "0:00:12"]

1. d4 {[%clk 0:03:00]}  d5 {[%clk 0:02:50]} 2. c4 {[%clk 0:03:01]}  e6 {[%clk 0:02:49]} 3. Nc3 {[%clk 0:03:01]}  a6 {[%clk 0:02:49]} 4. cxd5 {[%clk 0:03:00]}  exd5 {[%clk 0:02:48]} 5. a3 {[%clk 0:03:00]}  c6 {[%clk 0:02:46]} 6. Bf4 {[%clk 0:02:57]}  Bd6 {[%clk 0:02:45]} 7. Bxd6 {[%clk 0:02:57]}  Qxd6 {[%clk 0:02:43]} 8. e3 {[%clk 0:02:57]}  Nf6 {[%clk 0:02:39]} 9. Bd3 {[%clk 0:02:57]}  O-O {[%clk 0:02:38]} 10. h3 {[%clk 0:02:57]}  Re8 {[%clk 0:02:33]} 11. Nf3 {[%clk 0:02:55]}  Nbd7 {[%clk 0:02:17]} 12. O-O {[%clk 0:02:52]}  Nf8 {[%clk 0:02:15]} 13. Ne5 {[%clk 0:02:50]}  Ng6 {[%clk 0:02:13]} 14. f4 {[%clk 0:02:50]}  c5 {[%clk 0:02:00]} 15. Qf3 {[%clk 0:02:41]}  cxd4 {[%clk 0:01:56]} 16. exd4 {[%clk 0:02:42]}  Qb6 {[%clk 0:01:52]} 17. Qf2 {[%clk 0:02:41]}  Nf8 {[%clk 0:01:45]} 18. g4 {[%clk 0:02:36]}  Ne6 {[%clk 0:01:36]} 19. Rad1 {[%clk 0:02:34]}  Kf8 {[%clk 0:01:22]} 20. Bb1 {[%clk 0:02:15]}  Qd6 {[%clk 0:01:06]} 21. Rfe1 {[%clk 0:02:10]}  b6 {[%clk 0:01:00]} 22. f5 {[%clk 0:01:35]}  Ng5 {[%clk 0:00:59]} 23. Qe3 {[%clk 0:01:35]}  h6 {[%clk 0:00:54]} 24. h4 {[%clk 0:01:32]}  Nxg4 {[%clk 0:00:33]} 25. Qg3 {[%clk 0:01:32]}  Nxe5 {[%clk 0:00:30]} 26. dxe5 {[%clk 0:01:12]}  Qc5+ {[%clk 0:00:29]} 27. Kh2 {[%clk 0:01:13]}  Ne4 {[%clk 0:00:21]} 28. Bxe4 {[%clk 0:01:04]}  dxe4 {[%clk 0:00:22]} 29. Rxe4 {[%clk 0:01:01]}  Bxf5 {[%clk 0:00:20]} 30. Re2 {[%clk 0:00:56]}  Rad8 {[%clk 0:00:20]} 31. Rde1 {[%clk 0:00:52]}  g6 {[%clk 0:00:19]} 32. Qf4 {[%clk 0:00:49]}  h5 {[%clk 0:00:19]} 33. Rg2 {[%clk 0:00:27]}  Rd4 {[%clk 0:00:19]} 34. Qg5 {[%clk 0:00:06]}  Rxe5 {[%clk 0:00:16]} 35. Rge2 {[%clk 0:00:06]}  Rxe2+ {[%clk 0:00:15]} 36. Rxe2 {[%clk 0:00:05]}  Qd6+ {[%clk 0:00:15]} 37. Kh1 {[%clk 0:00:00]}  Kg7 {[%clk 0:00:12]} 0-1


[Site "https://www.chess.com"]

[Event "Titled Tuesday Blitz May 30 Early 2023"]
[White "MaryanKyrychenko"]
[Black "Bilan, Danila"]
[BlackFideId "24161918"]
[WhiteElo "2631"]
[BlackElo "2182"]
[Result "0-1"]
[Round "10"]
[TimeControl "180+2"]
[Date "2023.05.30"]
[WhiteClock "0:00:38"]
[BlackClock "0:00:14"]

1. e4 {[%clk 0:03:00]}  c6 {[%clk 0:02:59]} 2. d4 {[%clk 0:03:00]}  d5 {[%clk 0:03:00]} 3. e5 {[%clk 0:03:01]}  c5 {[%clk 0:02:59]} 4. dxc5 {[%clk 0:03:02]}  e6 {[%clk 0:02:58]} 5. a3 {[%clk 0:03:03]}  Bxc5 {[%clk 0:02:58]} 6. b4 {[%clk 0:03:04]}  Bb6 {[%clk 0:02:54]} 7. Bb2 {[%clk 0:03:04]}  a5 {[%clk 0:02:54]} 8. b5 {[%clk 0:03:04]}  Nd7 {[%clk 0:02:48]} 9. Nf3 {[%clk 0:03:04]}  Ne7 {[%clk 0:02:39]} 10. Bd3 {[%clk 0:03:04]}  Nc5 {[%clk 0:02:37]} 11. O-O {[%clk 0:03:03]}  Bd7 {[%clk 0:02:36]} 12. a4 {[%clk 0:02:45]}  Rc8 {[%clk 0:02:28]} 13. Re1 {[%clk 0:02:44]}  Qc7 {[%clk 0:02:18]} 14. Na3 {[%clk 0:02:29]}  Ng6 {[%clk 0:02:08]} 15. g3 {[%clk 0:02:25]}  Nxa4 {[%clk 0:01:56]} 16. Bd4 {[%clk 0:02:11]}  Bxd4 {[%clk 0:01:48]} 17. Nxd4 {[%clk 0:02:08]}  Nxe5 {[%clk 0:01:36]} 18. b6 {[%clk 0:01:48]}  Nxb6 {[%clk 0:01:21]} 19. Nab5 {[%clk 0:01:46]}  Qb8 {[%clk 0:01:18]} 20. Rxa5 {[%clk 0:01:38]}  Nbc4 {[%clk 0:01:17]} 21. Bxc4 {[%clk 0:01:34]}  Nxc4 {[%clk 0:01:16]} 22. Ra1 {[%clk 0:01:23]}  O-O {[%clk 0:01:13]} 23. c3 {[%clk 0:01:23]}  e5 {[%clk 0:01:08]} 24. Na7 {[%clk 0:01:12]}  exd4 {[%clk 0:01:03]} 25. Nxc8 {[%clk 0:01:13]}  Qxc8 {[%clk 0:01:01]} 26. Qxd4 {[%clk 0:01:13]}  Be6 {[%clk 0:00:54]} 27. Ra7 {[%clk 0:01:03]}  b6 {[%clk 0:00:49]} 28. Re7 {[%clk 0:00:59]}  Qc5 {[%clk 0:00:22]} 29. Qh4 {[%clk 0:00:58]}  Nd2 {[%clk 0:00:19]} 30. Kg2 {[%clk 0:00:46]}  Ne4 {[%clk 0:00:14]} 31. Rb7 {[%clk 0:00:41]}  Qxf2+ {[%clk 0:00:13]} 32. Kh1 {[%clk 0:00:38]}  Qxe1+ {[%clk 0:00:13]} 33. Kg2 {[%clk 0:00:38]}  Qf2+ {[%clk 0:00:14]} 34. Kh1 {[%clk 0:00:38]}  Qf1# {[%clk 0:00:14]} 0-1


[Site "https://www.chess.com"]

[Event "Titled Tuesday Blitz May 30 Early 2023"]
[White "Jaskolka, Tomasz"]
[Black "Iskusnyh, Sergei"]
[WhiteFideId "1170791"]
[BlackFideId "4120027"]
[WhiteElo "2155"]
[BlackElo "2492"]
[Result "0-1"]
[Round "10"]
[TimeControl "180+2"]
[Date "2023.05.30"]
[WhiteClock "0:00:53"]
[BlackClock "0:00:26"]

1. e4 {[%clk 0:03:00]}  e6 {[%clk 0:02:58]} 2. Nf3 {[%clk 0:03:00]}  d5 {[%clk 0:02:59]} 3. e5 {[%clk 0:03:00]}  c5 {[%clk 0:02:58]} 4. b4 {[%clk 0:03:01]}  d4 {[%clk 0:02:58]} 5. bxc5 {[%clk 0:02:58]}  Bxc5 {[%clk 0:02:58]} 6. Bd3 {[%clk 0:02:58]}  Ne7 {[%clk 0:02:50]} 7. O-O {[%clk 0:02:57]}  Nbc6 {[%clk 0:02:47]} 8. c3 {[%clk 0:02:57]}  Ng6 {[%clk 0:02:14]} 9. Re1 {[%clk 0:02:49]}  O-O {[%clk 0:02:10]} 10. Bb2 {[%clk 0:02:38]}  dxc3 {[%clk 0:02:04]} 11. dxc3 {[%clk 0:02:30]}  Bxf2+ {[%clk 0:02:00]} 12. Kxf2 {[%clk 0:02:26]}  Qb6+ {[%clk 0:01:59]} 13. Kf1 {[%clk 0:02:26]}  Qxb2 {[%clk 0:01:57]} 14. Nbd2 {[%clk 0:02:27]}  Qxc3 {[%clk 0:01:52]} 15. Ne4 {[%clk 0:02:27]}  Qa3 {[%clk 0:01:49]} 16. Qd2 {[%clk 0:02:24]}  Ncxe5 {[%clk 0:01:44]} 17. Nxe5 {[%clk 0:02:22]}  Nxe5 {[%clk 0:01:43]} 18. Bc2 {[%clk 0:02:19]}  Bd7 {[%clk 0:01:39]} 19. Ng5 {[%clk 0:02:15]}  Bb5+ {[%clk 0:01:38]} 20. Kg1 {[%clk 0:02:12]}  Qc5+ {[%clk 0:01:30]} 21. Kh1 {[%clk 0:02:11]}  h6 {[%clk 0:01:30]} 22. Ne4 {[%clk 0:02:00]}  Qc7 {[%clk 0:01:20]} 23. Rac1 {[%clk 0:01:58]}  Bc6 {[%clk 0:01:20]} 24. Qf4 {[%clk 0:01:54]}  Rac8 {[%clk 0:01:08]} 25. Ng3 {[%clk 0:01:31]}  Ng6 {[%clk 0:01:00]} 26. Qg4 {[%clk 0:01:30]}  Qf4 {[%clk 0:00:57]} 27. Qh5 {[%clk 0:01:21]}  Qg5 {[%clk 0:00:49]} 28. Bxg6 {[%clk 0:01:14]}  Qxg6 {[%clk 0:00:45]} 29. Qxg6 {[%clk 0:01:12]}  fxg6 {[%clk 0:00:44]} 30. Kg1 {[%clk 0:01:07]}  Bd5 {[%clk 0:00:44]} 31. Rb1 {[%clk 0:01:07]}  Rc2 {[%clk 0:00:43]} 32. Re2 {[%clk 0:01:05]}  Rfc8 {[%clk 0:00:42]} 33. a3 {[%clk 0:01:03]}  g5 {[%clk 0:00:39]} 34. Kf2 {[%clk 0:00:58]}  Rxe2+ {[%clk 0:00:38]} 35. Nxe2 {[%clk 0:00:57]}  Rc2 {[%clk 0:00:39]} 36. Ke3 {[%clk 0:00:58]}  Kf7 {[%clk 0:00:37]} 37. g3 {[%clk 0:00:55]}  Ra2 {[%clk 0:00:36]} 38. Kd4 {[%clk 0:00:51]}  Rxe2 {[%clk 0:00:35]} 39. h4 {[%clk 0:00:49]}  gxh4 {[%clk 0:00:34]} 40. gxh4 {[%clk 0:00:50]}  Re4+ {[%clk 0:00:34]} 41. Kc5 {[%clk 0:00:50]}  Rxh4 {[%clk 0:00:31]} 42. a4 {[%clk 0:00:51]}  Rxa4 {[%clk 0:00:31]} 43. Kd6 {[%clk 0:00:50]}  g5 {[%clk 0:00:30]} 44. Ke5 {[%clk 0:00:50]}  Kg6 {[%clk 0:00:30]} 45. Rc1 {[%clk 0:00:49]}  g4 {[%clk 0:00:29]} 46. Rc8 {[%clk 0:00:49]}  Kg5 {[%clk 0:00:27]} 47. Rg8+ {[%clk 0:00:49]}  Kh4 {[%clk 0:00:27]} 48. Rg6 {[%clk 0:00:50]}  h5 {[%clk 0:00:27]} 49. Kd6 {[%clk 0:00:47]}  Kg3 {[%clk 0:00:27]} 50. Rh6 {[%clk 0:00:47]}  h4 {[%clk 0:00:27]} 51. Ke5 {[%clk 0:00:47]}  h3 {[%clk 0:00:27]} 52. Kf6 {[%clk 0:00:47]}  h2 {[%clk 0:00:27]} 53. Kg5 {[%clk 0:00:48]}  h1=Q {[%clk 0:00:27]} 54. Rxh1 {[%clk 0:00:49]}  Bxh1 {[%clk 0:00:27]} 55. Kf6 {[%clk 0:00:49]}  Kf4 {[%clk 0:00:27]} 56. Kg6 {[%clk 0:00:50]}  g3 {[%clk 0:00:27]} 57. Kh5 {[%clk 0:00:51]}  g2 {[%clk 0:00:27]} 58. Kh4 {[%clk 0:00:51]}  g1=Q {[%clk 0:00:25]} 59. Kh3 {[%clk 0:00:52]}  Qg2+ {[%clk 0:00:25]} 60. Kh4 {[%clk 0:00:53]}  Qh2# {[%clk 0:00:26]} 0-1


[Site "https://www.chess.com"]

[Event "Titled Tuesday Blitz May 30 Early 2023"]
[White "Janaszak, Dawid"]
[Black "Kleiman, Jake"]
[WhiteFideId "1119206"]
[BlackFideId "2020041"]
[WhiteElo "2220"]
[BlackElo "2601"]
[Result "0-1"]
[Round "10"]
[TimeControl "180+2"]
[Date "2023.05.30"]
[WhiteClock "0:00:05"]
[BlackClock "0:00:07"]

1. e4 {[%clk 0:03:00]}  e5 {[%clk 0:02:53]} 2. Nf3 {[%clk 0:03:00]}  Nc6 {[%clk 0:02:53]} 3. d4 {[%clk 0:03:00]}  exd4 {[%clk 0:02:53]} 4. Nxd4 {[%clk 0:03:01]}  Bb4+ {[%clk 0:02:53]} 5. c3 {[%clk 0:03:00]}  Bc5 {[%clk 0:02:54]} 6. Nf5 {[%clk 0:02:56]}  Qf6 {[%clk 0:02:50]} 7. Be3 {[%clk 0:02:55]}  Bxe3 {[%clk 0:02:51]} 8. Nxe3 {[%clk 0:02:56]}  Nge7 {[%clk 0:02:51]} 9. Qd2 {[%clk 0:02:52]}  O-O {[%clk 0:02:51]} 10. c4 {[%clk 0:02:52]}  d6 {[%clk 0:02:52]} 11. Nc3 {[%clk 0:02:51]}  Be6 {[%clk 0:02:35]} 12. Be2 {[%clk 0:02:50]}  Qg6 {[%clk 0:02:34]} 13. O-O {[%clk 0:02:47]}  f5 {[%clk 0:02:35]} 14. exf5 {[%clk 0:02:46]}  Nxf5 {[%clk 0:02:36]} 15. Nxf5 {[%clk 0:02:45]}  Bxf5 {[%clk 0:02:34]} 16. Kh1 {[%clk 0:02:35]}  Rae8 {[%clk 0:02:33]} 17. f4 {[%clk 0:02:29]}  Kh8 {[%clk 0:02:27]} 18. Bf3 {[%clk 0:02:29]}  Bd3 {[%clk 0:02:10]} 19. Bh5 {[%clk 0:01:56]}  Qxh5 {[%clk 0:02:04]} 20. Qxd3 {[%clk 0:01:56]}  Re6 {[%clk 0:01:36]} 21. Qd5 {[%clk 0:01:41]}  Qf7 {[%clk 0:01:30]} 22. g3 {[%clk 0:01:28]}  Kg8 {[%clk 0:01:16]} 23. Rae1 {[%clk 0:01:25]}  Rfe8 {[%clk 0:01:08]} 24. Rxe6 {[%clk 0:01:25]}  Rxe6 {[%clk 0:01:03]} 25. Kg2 {[%clk 0:01:18]}  Nd8 {[%clk 0:00:56]} 26. Rf2 {[%clk 0:01:11]}  Kf8 {[%clk 0:00:49]} 27. Qd3 {[%clk 0:01:06]}  h6 {[%clk 0:00:46]} 28. Re2 {[%clk 0:01:05]}  c6 {[%clk 0:00:42]} 29. b3 {[%clk 0:01:04]}  Rxe2+ {[%clk 0:00:41]} 30. Nxe2 {[%clk 0:01:04]}  Qe7 {[%clk 0:00:36]} 31. Nd4 {[%clk 0:01:03]}  Nf7 {[%clk 0:00:36]} 32. Qf5 {[%clk 0:00:56]}  Kg8 {[%clk 0:00:32]} 33. Ne6 {[%clk 0:00:53]}  a5 {[%clk 0:00:26]} 34. g4 {[%clk 0:00:50]}  Qh4 {[%clk 0:00:23]} 35. h3 {[%clk 0:00:47]}  Qe7 {[%clk 0:00:19]} 36. a3 {[%clk 0:00:42]}  Nd8 {[%clk 0:00:16]} 37. Nxd8 {[%clk 0:00:42]}  Qxd8 {[%clk 0:00:17]} 38. Qe6+ {[%clk 0:00:42]}  Kf8 {[%clk 0:00:17]} 39. f5 {[%clk 0:00:42]}  Qe7 {[%clk 0:00:16]} 40. Qc8+ {[%clk 0:00:35]}  Kf7 {[%clk 0:00:16]} 41. Kf3 {[%clk 0:00:34]}  d5 {[%clk 0:00:15]} 42. cxd5 {[%clk 0:00:31]}  cxd5 {[%clk 0:00:16]} 43. Qc2 {[%clk 0:00:29]}  Qe5 {[%clk 0:00:15]} 44. Qd3 {[%clk 0:00:27]}  Kf6 {[%clk 0:00:14]} 45. b4 {[%clk 0:00:26]}  axb4 {[%clk 0:00:14]} 46. axb4 {[%clk 0:00:26]}  h5 {[%clk 0:00:10]} 47. b5 {[%clk 0:00:26]}  h4 {[%clk 0:00:10]} 48. Kg2 {[%clk 0:00:16]}  Kg5 {[%clk 0:00:09]} 49. Qd2+ {[%clk 0:00:15]}  Kf6 {[%clk 0:00:08]} 50. Qd3 {[%clk 0:00:16]}  Ke7 {[%clk 0:00:07]} 51. Qd2 {[%clk 0:00:15]}  Qg3+ {[%clk 0:00:06]} 52. Kf1 {[%clk 0:00:13]}  Qxh3+ {[%clk 0:00:07]} 53. Ke1 {[%clk 0:00:14]}  Qh1+ {[%clk 0:00:07]} 54. Kf2 {[%clk 0:00:05]}  Qh2+ {[%clk 0:00:07]} 0-1


[Site "https://www.chess.com"]

[Event "Titled Tuesday Blitz May 30 Early 2023"]
[White "Sowul, Bartosz"]
[Black "Pinheiro, Iung Alicio de O."]
[WhiteFideId "1137590"]
[BlackFideId "2104350"]
[WhiteElo "2188"]
[BlackElo "2283"]
[Result "0-1"]
[Round "10"]
[TimeControl "180+2"]
[Date "2023.05.30"]
[WhiteClock "0:00:06"]
[BlackClock "0:00:17"]

1. e4 {[%clk 0:03:00]}  e5 {[%clk 0:02:58]} 2. Nf3 {[%clk 0:03:00]}  Nc6 {[%clk 0:02:58]} 3. Bb5 {[%clk 0:03:00]}  a6 {[%clk 0:02:58]} 4. Bxc6 {[%clk 0:03:00]}  dxc6 {[%clk 0:02:57]} 5. O-O {[%clk 0:03:00]}  Bg4 {[%clk 0:02:55]} 6. h3 {[%clk 0:03:00]}  h5 {[%clk 0:02:55]} 7. d3 {[%clk 0:03:00]}  Qf6 {[%clk 0:02:50]} 8. Nbd2 {[%clk 0:03:00]}  g5 {[%clk 0:02:05]} 9. Re1 {[%clk 0:02:49]}  Bd7 {[%clk 0:01:58]} 10. Nc4 {[%clk 0:02:18]}  g4 {[%clk 0:01:37]} 11. Nfxe5 {[%clk 0:02:11]}  Be6 {[%clk 0:01:33]} 12. h4 {[%clk 0:01:26]}  Qxh4 {[%clk 0:01:23]} 13. Bf4 {[%clk 0:01:24]}  Qf6 {[%clk 0:01:17]} 14. Qd2 {[%clk 0:01:19]}  Bh6 {[%clk 0:01:15]} 15. Bxh6 {[%clk 0:01:12]}  Nxh6 {[%clk 0:01:16]} 16. d4 {[%clk 0:00:44]}  O-O-O {[%clk 0:01:11]} 17. Qc3 {[%clk 0:00:41]}  h4 {[%clk 0:01:03]} 18. Na5 {[%clk 0:00:40]}  Qe7 {[%clk 0:00:51]} 19. Re3 {[%clk 0:00:22]}  h3 {[%clk 0:00:48]} 20. Nxb7 {[%clk 0:00:17]}  hxg2 {[%clk 0:00:31]} 21. Nxd8 {[%clk 0:00:11]}  Qh4 {[%clk 0:00:29]} 22. Kxg2 {[%clk 0:00:09]}  Nf5 {[%clk 0:00:24]} 23. Nxe6 {[%clk 0:00:05]}  Qh2+ {[%clk 0:00:18]} 24. Kf1 {[%clk 0:00:06]}  Nxe3+ {[%clk 0:00:17]} 25. Qxe3 {[%clk 0:00:07]}  Qh1+ {[%clk 0:00:17]} 26. Ke2 {[%clk 0:00:07]}  Qxa1 {[%clk 0:00:18]} 27. Nxf7 {[%clk 0:00:07]}  Rh1 {[%clk 0:00:18]} 28. Qf4 {[%clk 0:00:06]}  Qd1+ {[%clk 0:00:16]} 29. Ke3 {[%clk 0:00:06]}  Re1# {[%clk 0:00:17]} 0-1


[Site "https://www.chess.com"]

[Event "Titled Tuesday Blitz May 30 Early 2023"]
[White "Srebrnic, Marko"]
[Black "koncheto"]
[WhiteFideId "14603616"]
[WhiteElo "2341"]
[BlackElo "2593"]
[Result "0-1"]
[Round "10"]
[TimeControl "180+2"]
[Date "2023.05.30"]
[WhiteClock "0:00:16"]
[BlackClock "0:00:08"]

1. e4 {[%clk 0:02:59]}  e5 {[%clk 0:03:00]} 2. Nc3 {[%clk 0:02:59]}  Nc6 {[%clk 0:02:57]} 3. Bc4 {[%clk 0:03:00]}  Nf6 {[%clk 0:02:54]} 4. d3 {[%clk 0:03:00]}  Bc5 {[%clk 0:02:52]} 5. f4 {[%clk 0:02:59]}  d6 {[%clk 0:02:43]} 6. Nf3 {[%clk 0:02:59]}  h6 {[%clk 0:02:41]} 7. a3 {[%clk 0:02:54]}  a6 {[%clk 0:02:40]} 8. f5 {[%clk 0:02:51]}  g6 {[%clk 0:02:31]} 9. fxg6 {[%clk 0:02:44]}  fxg6 {[%clk 0:02:31]} 10. Nh4 {[%clk 0:02:44]}  Ng4 {[%clk 0:02:09]} 11. Nxg6 {[%clk 0:02:43]}  Qf6 {[%clk 0:02:09]} 12. Qf3 {[%clk 0:02:30]}  Qxg6 {[%clk 0:02:07]} 13. Rf1 {[%clk 0:02:28]}  Be6 {[%clk 0:01:49]} 14. Bxe6 {[%clk 0:02:00]}  Qxe6 {[%clk 0:01:46]} 15. Nd5 {[%clk 0:01:53]}  O-O-O {[%clk 0:01:45]} 16. h3 {[%clk 0:01:43]}  Nd4 {[%clk 0:01:19]} 17. Qd1 {[%clk 0:01:22]}  c6 {[%clk 0:00:29]} 18. c3 {[%clk 0:01:21]}  Nh2 {[%clk 0:00:17]} 19. Rf6 {[%clk 0:01:18]}  Qd7 {[%clk 0:00:12]} 20. cxd4 {[%clk 0:01:16]}  cxd5 {[%clk 0:00:09]} 21. dxc5 {[%clk 0:01:16]}  dxc5 {[%clk 0:00:10]} 22. Be3 {[%clk 0:00:32]}  dxe4 {[%clk 0:00:09]} 23. dxe4 {[%clk 0:00:28]}  Qe7 {[%clk 0:00:10]} 24. Qxd8+ {[%clk 0:00:13]}  Rxd8 {[%clk 0:00:09]} 25. Rf5 {[%clk 0:00:14]}  Qd6 {[%clk 0:00:07]} 26. Rc1 {[%clk 0:00:13]}  Qd3 {[%clk 0:00:06]} 27. Rc3 {[%clk 0:00:12]}  Qd1+ {[%clk 0:00:05]} 28. Kf2 {[%clk 0:00:12]}  Nf1 {[%clk 0:00:04]} 29. Bxc5 {[%clk 0:00:10]}  Kb8 {[%clk 0:00:03]} 30. Be3 {[%clk 0:00:08]}  Nxe3 {[%clk 0:00:03]} 31. Kxe3 {[%clk 0:00:07]}  Qd2+ {[%clk 0:00:03]} 32. Kf3 {[%clk 0:00:07]}  Qxb2 {[%clk 0:00:03]} 33. Re3 {[%clk 0:00:07]}  Qd2 {[%clk 0:00:03]} 34. Rxe5 {[%clk 0:00:07]}  Rd3 {[%clk 0:00:03]} 35. Rxd3 {[%clk 0:00:07]}  Qxd3+ {[%clk 0:00:04]} 36. Kf4 {[%clk 0:00:08]}  Qd6 {[%clk 0:00:04]} 37. Kf5 {[%clk 0:00:09]}  Qxa3 {[%clk 0:00:04]} 38. Re6 {[%clk 0:00:10]}  Qg3 {[%clk 0:00:03]} 39. Rg6 {[%clk 0:00:10]}  Qf2+ {[%clk 0:00:03]} 40. Ke6 {[%clk 0:00:10]}  a5 {[%clk 0:00:02]} 41. e5 {[%clk 0:00:11]}  a4 {[%clk 0:00:03]} 42. Kd7 {[%clk 0:00:11]}  Qf5+ {[%clk 0:00:02]} 43. e6 {[%clk 0:00:12]}  Qxg6 {[%clk 0:00:02]} 44. e7 {[%clk 0:00:12]}  a3 {[%clk 0:00:03]} 45. h4 {[%clk 0:00:12]}  h5 {[%clk 0:00:02]} 46. g4 {[%clk 0:00:13]}  hxg4 {[%clk 0:00:03]} 47. h5 {[%clk 0:00:14]}  Qxh5 {[%clk 0:00:04]} 48. Ke6 {[%clk 0:00:14]}  Qe8 {[%clk 0:00:04]} 49. Kf6 {[%clk 0:00:15]}  a2 {[%clk 0:00:04]} 50. Kg5 {[%clk 0:00:15]}  Qxe7+ {[%clk 0:00:05]} 51. Kh5 {[%clk 0:00:15]}  Qf6 {[%clk 0:00:03]} 52. Kxg4 {[%clk 0:00:15]}  Qf2 {[%clk 0:00:04]} 53. Kg5 {[%clk 0:00:15]}  Qf3 {[%clk 0:00:04]} 54. Kg6 {[%clk 0:00:15]}  Qf4 {[%clk 0:00:05]} 55. Kg7 {[%clk 0:00:16]}  Qf5 {[%clk 0:00:05]} 56. Kg8 {[%clk 0:00:17]}  Qf6 {[%clk 0:00:06]} 57. Kh7 {[%clk 0:00:18]}  Qg5 {[%clk 0:00:06]} 58. Kh8 {[%clk 0:00:18]}  Kc7 {[%clk 0:00:07]} 59. Kh7 {[%clk 0:00:16]}  Kd7 {[%clk 0:00:08]} 0-1


[Site "https://www.chess.com"]